bitfinex-derivatives/quotes_BTCF0:USTF0_20240903
["timestamp","ask_amount","ask_price","bid_price","bid_amount"]
[1725321601552,0.00316791,59164.0,59161.0,0.12977018]
[1725321601751,0.00316791,59164.0,59163.0,0.0004]
[1725321602044,0.00016791,59164.0,59163.0,0.12917018]
[1725321602452,0.00016791,59164.0,59163.0,0.1291718]
[1725321604646,0.00316791,59164.0,59163.0,0.1301718]
[1725321605954,0.00316791,59164.0,59163.0,0.1315018]
[1725321606152,0.00316791,59164.0,59163.0,0.4923018]
[1725321606354,0.0039,59170.0,59163.0,0.59369544]
[1725321606566,0.3608,59171.0,59169.0,0.08445416]
[1725321606852,0.3608,59171.0,59170.0,0.0472]
[1725321607059,0.3608,59171.0,59170.0,0.0939]
[1725321607649,0.0039,59178.0,59170.0,0.22265426]
[1725321607650,0.3608,59177.0,59170.0,0.22265426]
[1725321607864,0.3608,59177.0,59174.0,0.08442781]
[1725321608051,0.3608,59177.0,59176.0,0.0004]
[1725321609451,0.3608,59177.0,59176.0,0.06788126]
[1725321609667,0.3608,59177.0,59176.0,0.0004]
[1725321609668,0.86776,59177.0,59176.0,0.0004]
[1725321609849,1.46776,59177.0,59176.0,0.0004]
[1725321610663,1.46776,59177.0,59176.0,0.0014]
[1725321610853,1.47137321,59177.0,59176.0,0.0014]
[1725321611951,1.46776,59177.0,59176.0,0.0014]
[1725321615662,0.3608,59177.0,59176.0,0.00505894]
[1725321616353,0.3608,59177.0,59176.0,0.05567598]
[1725321616553,0.3608,59177.0,59176.0,0.10507598]
[1725321616953,0.3608,59177.0,59176.0,0.19507598]
[1725321617957,0.3608,59177.0,59176.0,0.14445894]
[1725321621556,0.3608,59177.0,59176.0,0.05445894]
[1725321621757,0.3608,59177.0,59176.0,0.14445894]
[1725321621959,0.3608,59181.0,59176.0,0.14445894]
[1725321622165,0.3608,59181.0,59180.0,0.0904]
[1725321622368,0.3608,59183.0,59180.0,0.0904]
[1725321622565,0.3608,59183.0,59182.0,0.0904]
[1725321623667,0.3608,59183.0,59182.0,0.14100332]
[1725321623965,0.3608,59183.0,59182.0,0.0004]
[1725321624152,1.46772,59183.0,59182.0,0.0004]
[1725321625459,1.46772,59183.0,59182.0,0.0014]
[1725321626460,0.86772,59183.0,59182.0,0.0014]
[1725321627462,1.46772,59183.0,59182.0,0.0014]
[1725321628469,0.86772,59183.0,59182.0,0.0014]
[1725321629261,1.46772,59183.0,59182.0,0.0014]
[1725321630464,1.53531,59183.0,59182.0,0.0014]
[1725321637776,1.53531,59183.0,59182.0,0.0004]
[1725321637979,1.53531,59183.0,59182.0,0.0014]
[1725321639073,1.53531,59183.0,59182.0,0.0004]
[1725321639383,1.53531,59183.0,59182.0,0.0014]
[1725321640872,1.53531,59183.0,59182.0,0.0004]
[1725321641078,1.53531,59183.0,59182.0,0.0014]
[1725321641572,1.53531,59183.0,59182.0,0.0004]
[1725321641769,1.53531,59183.0,59182.0,0.0014]
[1725321643372,1.53531,59183.0,59182.0,0.00273]
[1725321645079,0.42839,59183.0,59182.0,0.00273]
[1725321645386,1.53531,59183.0,59182.0,0.00273]
[1725321645682,0.93531,59183.0,59182.0,0.00273]
[1725321645976,0.86772,59183.0,59182.0,0.00273]
[1725321647171,0.3608,59183.0,59182.0,0.00273]
[1725321650073,0.3608,59183.0,59182.0,0.09273]
[1725321661379,0.3608,59183.0,59182.0,0.160321]
[1725321661974,0.3608,59183.0,59182.0,0.070321]
[1725321662180,0.3608,59183.0,59182.0,0.160321]
[1725321662585,0.3608,59183.0,59182.0,0.070321]
[1725321662785,0.3608,59183.0,59182.0,0.00273]
[1725321663786,0.42839,59183.0,59182.0,0.00273]
[1725321665684,0.4319971,59183.0,59182.0,0.0014]
[1725321666780,0.3608,59183.0,59182.0,0.14206114]
[1725321666985,0.3608,59183.0,59182.0,0.158991]
[1725321667979,0.3608,59183.0,59182.0,0.228991]
[1725321670390,0.3608,59183.0,59182.0,0.0014]
[1725321670579,1.6029,59183.0,59182.0,0.0014]
[1725321670779,1.6029,59183.0,59172.0,0.0039]
[1725321670780,1.53774688,59183.0,59172.0,0.0039]
[1725321670983,1.53774688,59183.0,59170.0,0.0039]
[1725321670984,0.067604,59171.0,59170.0,0.0039]
[1725321671178,0.228001,59173.0,59169.0,0.0004]
[1725321671179,0.067605,59170.0,59169.0,0.0004]
[1725321671483,0.068005,59170.0,59169.0,0.0004]
[1725321671787,0.068005,59170.0,59160.0,0.0039]
[1725321671788,0.067606,59169.0,59160.0,0.05458721]
[1725321671992,0.575046,59169.0,59162.0,0.00368303]
[1725321672182,1.175046,59169.0,59162.0,0.00368303]
[1725321672986,0.575046,59169.0,59162.0,0.00368303]
[1725321673193,1.175046,59169.0,59168.0,0.00125368]
[1725321673490,0.575046,59169.0,59168.0,0.00125368]
[1725321673877,0.068006,59169.0,59168.0,0.00125368]
[1725321674079,0.575046,59169.0,59168.0,0.00125368]
[1725321674681,0.068006,59169.0,59168.0,0.00125368]
[1725321675384,1.175046,59169.0,59168.0,0.00125368]
[1725321675590,0.575046,59169.0,59168.0,0.00125368]
[1725321675887,1.175046,59169.0,59168.0,0.00125368]
[1725321676485,0.575046,59169.0,59168.0,0.00125368]
[1725321677094,0.068006,59169.0,59168.0,0.00125368]
[1725321680091,0.068006,59169.0,59168.0,0.16125368]
[1725321680694,0.068006,59169.0,59168.0,0.16497197]
[1725321680899,0.088006,59169.0,59168.0,0.16497197]
[1725321681789,0.809606,59169.0,59168.0,0.16497197]
[1725321684686,0.809606,59169.0,59168.0,0.00497197]
[1725321689105,0.789606,59169.0,59168.0,0.00497197]
[1725321694700,0.789606,59169.0,59168.0,0.00125368]
[1725321694701,0.857212,59169.0,59168.0,0.00125368]
[1725321694910,0.067636,59143.0,59142.0,0.06743921]
[1725321695203,0.722,59143.0,59133.0,0.09789105]
[1725321695411,0.3608,59134.0,59133.0,0.0473]
[1725321695602,0.3612,59134.0,59133.0,0.0473]
[1725321695904,0.3612,59134.0,59128.0,0.00025346]
[1725321696113,0.588852,59129.0,59128.0,0.00025346]
[1725321696407,0.59713528,59129.0,59128.0,0.00025346]
[1725321697919,0.414852,59129.0,59128.0,0.00025346]
[1725321698597,0.414852,59129.0,59128.0,0.00125346]
[1725321699905,0.067663,59119.0,59118.0,0.0016]
[1725321700118,0.7980293,59119.0,59118.0,0.0016]
[1725321700614,0.789663,59119.0,59118.0,0.0016]
[1725321701211,0.7980403,59119.0,59118.0,0.0016]
[1725321701510,0.789663,59119.0,59118.0,0.0026]
[1725321701896,0.722,59119.0,59118.0,0.0026]
[1725321707215,0.789663,59119.0,59118.0,0.0026]
[1725321709716,0.722,59119.0,59118.0,0.0026]
[1725321709942,0.722,59119.0,59118.0,0.070264]
[1725321710817,0.67968504,59119.0,59118.0,0.070264]
[1725321713728,0.67968504,59119.0,59118.0,0.07388871]
[1725321714722,0.67968504,59119.0,59118.0,0.00622471]
[1725321714919,0.74734804,59119.0,59118.0,0.00622471]
[1725321715434,0.74734804,59119.0,59118.0,0.00755471]
[1725321715731,0.74734804,59119.0,59118.0,0.00393]
[1725321717126,0.67968504,59119.0,59118.0,0.00393]
[1725321721521,0.74734804,59119.0,59118.0,0.00393]
[1725321724126,0.428863,59119.0,59118.0,0.00393]
[1725321727620,0.068063,59119.0,59118.0,0.00393]
[1725321728125,0.428863,59119.0,59118.0,0.00393]
[1725321729834,0.068063,59119.0,59118.0,0.00393]
[1725321730035,0.428863,59119.0,59118.0,0.00393]
[1725321730336,0.428863,59119.0,59118.0,0.12393]
[1725321730529,0.068063,59119.0,59118.0,0.12393]
[1725321730833,0.428863,59119.0,59118.0,0.12393]
[1725321731929,0.428863,59119.0,59118.0,0.00393]
[1725321736535,0.068063,59119.0,59118.0,0.00393]
[1725321736731,0.428863,59119.0,59118.0,0.00393]
[1725321737033,0.428863,59119.0,59118.0,0.0026]
[1725321741943,0.428863,59119.0,59118.0,0.0702563]
[1725321744237,0.789663,59119.0,59118.0,0.0702563]
[1725321745152,0.789663,59119.0,59118.0,0.2302563]
[1725321746439,0.789663,59119.0,59118.0,0.1626]
[1725321746835,0.789663,59119.0,59118.0,0.2103]
[1725321748044,0.789663,59119.0,59118.0,0.1403]
[1725321748540,0.068063,59119.0,59118.0,0.1403]
[1725321748938,0.428863,59119.0,59118.0,0.1403]
[1725321751342,0.428863,59119.0,59118.0,0.14163]
[1725321754648,0.068063,59119.0,59118.0,0.14163]
[1725321754843,0.428863,59119.0,59118.0,0.14163]
[1725321755746,0.428863,59119.0,59118.0,0.05163]
[1725321756339,0.428863,59119.0,59118.0,0.14163]
[1725321758747,0.3612,59119.0,59118.0,0.209294]
[1725321758948,0.00025368,59124.0,59118.0,1.37795075]
[1725321759253,0.0039,59133.0,59123.0,0.3612]
[1725321759449,0.428445,59135.0,59128.0,0.067653]
[1725321759450,0.0039,59129.0,59128.0,0.067653]
[1725321759652,0.428445,59135.0,59128.0,0.067653]
[1725321759653,0.428445,59135.0,59129.0,0.067651]
[1725321759844,0.428445,59135.0,59134.0,0.0904]
[1725321760044,0.428445,59135.0,59134.0,0.16]
[1725321761452,0.442445,59135.0,59134.0,0.161]
[1725321763456,0.442445,59135.0,59134.0,0.16466991]
[1725321764451,0.442445,59135.0,59134.0,0.00466991]
[1725321770059,0.51009,59135.0,59134.0,0.001]
[1725321772264,0.67009,59135.0,59134.0,0.001]
[1725321772459,1.77741,59135.0,59134.0,0.001]
[1725321772852,0.51009,59135.0,59134.0,0.001]
[1725321775168,0.803245,59135.0,59134.0,0.001]
[1725321775556,0.87089,59135.0,59134.0,0.001]
[1725321780562,0.803245,59135.0,59134.0,0.001]
[1725321782662,0.803245,59135.0,59134.0,0.068646]
[1725321784163,0.7356,59135.0,59134.0,0.068646]
[1725321784776,0.7356,59135.0,59134.0,0.11935146]
[1725321785159,0.3748,59135.0,59134.0,0.11935146]
[1725321785366,0.3748,59135.0,59134.0,0.11929165]
[1725321785575,0.3748,59135.0,59134.0,0.068646]
[1725321786164,0.0039,59142.0,59135.0,0.50728]
[1725321786377,0.0039,59146.0,59141.0,0.0904]
[1725321786571,0.3608,59148.0,59147.0,0.157631]
[1725321786776,0.3608,59148.0,59147.0,0.158031]
[1725321787275,0.3608,59148.0,59147.0,0.157631]
[1725321789569,0.067625,59152.0,59147.0,0.157631]
[1725321789880,0.067625,59152.0,59151.0,0.0904]
[1725321791062,0.067625,59152.0,59151.0,0.0914]
[1725321793166,0.36168,59155.0,59151.0,0.159026]
[1725321793362,0.36168,59155.0,59154.0,0.0004]
[1725321793363,0.3608,59155.0,59154.0,0.0004]
[1725321793562,0.3608,59155.0,59154.0,0.0904]
[1725321793977,0.3608,59155.0,59154.0,0.158023]
[1725321794164,0.3608,59160.0,59156.0,0.067621]
[1725321794369,0.3608,59160.0,59159.0,0.0904]
[1725321795663,0.428416,59160.0,59159.0,0.0004]
[1725321796672,0.475216,59160.0,59159.0,0.0004]
[1725321797077,0.476216,59160.0,59159.0,0.0004]
[1725321797574,0.476216,59160.0,59159.0,0.0014]
[1725321799374,0.543832,59160.0,59159.0,0.0014]
[1725321800976,0.643832,59160.0,59159.0,0.0014]
[1725321802278,1.150952,59160.0,59159.0,0.0014]
[1725321804079,0.643832,59160.0,59159.0,0.0014]
[1725321810083,0.529416,59160.0,59159.0,0.0014]
[1725321810284,0.429416,59160.0,59159.0,0.0914]
[1725321812885,0.3608,59170.0,59159.0,1.626937]
[1725321813074,0.0039,59170.0,59168.0,0.067606]
[1725321813275,0.0004,59173.0,59169.0,0.0904]
[1725321813477,0.0004,59173.0,59168.0,0.067606]
[1725321813478,0.0004,59173.0,59172.0,0.0904]
[1725321813681,0.0004,59173.0,59172.0,0.09]
[1725321815080,0.0004,59173.0,59169.0,0.09]
[1725321815282,0.0004,59170.0,59169.0,0.09]
[1725321815878,0.3602,59172.0,59169.0,0.09]
[1725321816080,0.3602,59172.0,59171.0,0.0004]
[1725321818482,0.3612,59172.0,59171.0,0.0014]
[1725321818681,0.3752,59172.0,59171.0,0.0024]
[1725321821891,0.3752,59172.0,59171.0,0.0959]
[1725321822090,0.3752,59172.0,59171.0,0.09949479]
[1725321822385,0.3752,59172.0,59171.0,0.16709879]
[1725321822692,0.015,59172.0,59171.0,0.16709879]
[1725321824486,0.015,59172.0,59171.0,0.52789879]
[1725321827992,0.015,59172.0,59171.0,0.16709879]
[1725321831202,0.015,59172.0,59171.0,1.27409879]
[1725321836000,0.015,59172.0,59171.0,1.36409879]
[1725321837018,0.014,59172.0,59171.0,1.36309879]
[1725321837202,0.015,59172.0,59171.0,1.36409879]
[1725321837395,0.015,59172.0,59171.0,0.00599479]
[1725321837592,0.553402,59172.0,59171.0,0.0024]
[1725321837796,0.192602,59172.0,59171.0,0.0924]
[1725321838397,0.178602,59172.0,59171.0,0.0914]
[1725321838595,0.188602,59172.0,59171.0,0.0914]
[1725321838789,0.189602,59172.0,59171.0,0.0924]
[1725321839201,0.189602,59172.0,59171.0,0.0914]
[1725321839202,0.178602,59172.0,59171.0,0.0914]
[1725321839399,0.191602,59172.0,59171.0,0.0924]
[1725321839896,0.19520068,59172.0,59171.0,0.0924]
[1725321840096,0.18220068,59172.0,59171.0,0.0914]
[1725321840301,0.18220068,59172.0,59171.0,0.0924]
[1725321840302,0.19520068,59172.0,59171.0,0.0924]
[1725321840602,0.014,59172.0,59171.0,0.160004]
[1725321840899,0.3748,59172.0,59171.0,0.0924]
[1725321841098,0.442402,59172.0,59171.0,0.0924]
[1725321841307,0.081602,59172.0,59171.0,0.0924]
[1725321841699,0.068602,59172.0,59171.0,0.0914]
[1725321842006,0.081602,59172.0,59171.0,0.0924]
[1725321842794,0.081602,59172.0,59171.0,0.0914]
[1725321843005,0.080602,59172.0,59171.0,0.0914]
[1725321843207,0.081602,59172.0,59171.0,0.0924]
[1725321843904,0.081602,59172.0,59171.0,0.0024]
[1725321845804,0.080602,59172.0,59171.0,0.0014]
[1725321846108,0.081602,59172.0,59171.0,0.0024]
[1725321847710,0.442402,59172.0,59171.0,0.0024]
[1725321852912,0.442402,59172.0,59171.0,0.12064661]
[1725321856019,0.442402,59172.0,59171.0,0.070004]
[1725321856217,0.442402,59172.0,59171.0,0.207604]
[1725321857713,0.442402,59172.0,59171.0,0.2582737]
[1725321860417,0.442402,59172.0,59171.0,0.2596037]
[1725321861510,0.442402,59172.0,59171.0,0.208934]
[1725321862623,0.3748,59172.0,59171.0,0.208934]
[1725321863722,0.014,59172.0,59171.0,0.208934]
[1725321864027,0.014,59172.0,59171.0,0.298934]
[1725321865618,0.014,59172.0,59171.0,1.405934]
[1725321865819,0.014,59172.0,59171.0,0.298934]
[1725321866018,0.014,59172.0,59171.0,0.36645749]
[1725321866219,0.014,59172.0,59171.0,0.298934]
[1725321866513,0.014,59172.0,59171.0,0.36645749]
[1725321866719,0.014,59172.0,59171.0,0.07125349]
[1725321866720,0.081602,59172.0,59171.0,0.07125349]
[1725321867017,0.081602,59172.0,59166.0,0.00399977]
[1725321867018,1.121,59172.0,59166.0,0.0004]
[1725321867217,0.067621,59156.0,59145.0,0.04169596]
[1725321867419,0.3612,59146.0,59145.0,0.04169596]
[1725321867721,0.3608,59146.0,59143.0,0.09]
[1725321867926,0.0004,59144.0,59141.0,0.1604]
[1725321868123,0.0004,59142.0,59141.0,0.1604]
[1725321868424,0.068035,59144.0,59141.0,0.1604]
[1725321868425,0.067035,59144.0,59141.0,0.16]
[1725321868827,0.066035,59144.0,59141.0,0.16]
[1725321869019,0.067637,59142.0,59141.0,0.16]
[1725321869428,0.067637,59142.0,59141.0,0.161]
[1725321869935,0.067637,59142.0,59141.0,0.16]
[1725321870120,0.067637,59142.0,59141.0,0.161]
[1725321871125,0.069637,59142.0,59141.0,0.161]
[1725321875127,0.069637,59142.0,59141.0,0.001]
[1725321884430,0.002,59142.0,59141.0,0.001]
[1725321884631,0.002,59142.0,59141.0,0.068638]
[1725321885040,0.002,59142.0,59141.0,0.117338]
[1725321889142,0.002,59142.0,59141.0,0.12100291]
[1725321891938,0.002,59142.0,59141.0,0.21100291]
[1725321896445,0.002,59142.0,59141.0,0.27859693]
[1725321896743,0.002,59142.0,59141.0,0.21100291]
[1725321897144,0.002,59142.0,59141.0,0.21233291]
[1725321902935,0.002,59142.0,59141.0,0.33233291]
[1725321905453,0.002,59142.0,59141.0,0.21233291]
[1725321915452,0.069637,59142.0,59141.0,0.00233]
[1725321916655,0.137274,59142.0,59141.0,0.00233]
[1725321917656,0.498074,59142.0,59141.0,0.00233]
[1725321918961,0.588074,59142.0,59141.0,0.00233]
[1725321919352,0.588074,59142.0,59141.0,0.001]
[1725321919554,0.227274,59142.0,59141.0,0.001]
[1725321925565,0.159637,59142.0,59141.0,0.001]
[1725321925871,0.069637,59142.0,59141.0,0.001]
[1725321926372,0.069637,59142.0,59141.0,0.091]
[1725321934880,0.069637,59142.0,59141.0,0.09233]
[1725321938176,0.430437,59142.0,59141.0,0.09233]
[1725321939086,0.069637,59142.0,59141.0,0.09233]
[1725321939276,0.430437,59142.0,59141.0,0.08983]
[1725321939479,0.069637,59142.0,59141.0,0.08983]
[1725321939679,0.430437,59142.0,59141.0,0.08983]
[1725321939880,0.069637,59142.0,59141.0,0.08983]
[1725321940081,0.430437,59142.0,59141.0,0.08983]
[1725321941577,0.430437,59142.0,59141.0,0.00133]
[1725321944080,0.069637,59142.0,59141.0,0.00133]
[1725321944297,0.430437,59142.0,59141.0,0.00133]
[1725321944679,0.069637,59142.0,59141.0,0.00133]
[1725321944890,0.430437,59142.0,59141.0,0.00133]
[1725321945182,0.628074,59142.0,59141.0,0.00133]
[1725321945785,0.267274,59142.0,59141.0,0.00133]
[1725321945982,0.628074,59142.0,59141.0,0.00133]
[1725321946285,0.267274,59142.0,59141.0,0.00133]
[1725321947073,0.628074,59142.0,59141.0,0.00133]
[1725321956178,0.628074,59142.0,59137.0,0.00025368]
[1725321956179,0.067641,59138.0,59137.0,0.00025368]
[1725321956390,0.068041,59138.0,59137.0,0.00025368]
[1725321957684,0.068041,59138.0,59137.0,0.00525368]
[1725321961088,0.07175252,59138.0,59137.0,0.00525368]
[1725321962794,0.07175252,59138.0,59137.0,0.09525368]
[1725321969593,0.07175252,59138.0,59137.0,0.00525368]
[1725321969801,0.81667352,59138.0,59137.0,0.00525368]
[1725321970003,0.22939352,59138.0,59137.0,0.00525368]
[1725321970403,1.33667352,59138.0,59137.0,0.00658368]
[1725321970604,0.73667352,59138.0,59137.0,0.00658368]
[1725321971206,0.75067352,59138.0,59137.0,0.00258368]
[1725321971508,1.53831452,59138.0,59137.0,0.00258368]
[1725321972302,1.44831452,59138.0,59137.0,0.00258368]
[1725321972506,0.43103452,59138.0,59137.0,0.00258368]
[1725321972807,0.95231452,59138.0,59137.0,0.00258368]
[1725321973403,0.32503452,59138.0,59137.0,0.00258368]
[1725321973923,0.83231452,59138.0,59137.0,0.00258368]
[1725321974414,0.32503452,59138.0,59137.0,0.00258368]
[1725321974715,0.83231452,59138.0,59137.0,0.00258368]
[1725321974912,0.32503452,59138.0,59137.0,0.00258368]
[1725321976820,0.23503452,59138.0,59137.0,0.00258368]
[1725321977123,0.32503452,59138.0,59137.0,0.00258368]
[1725321977515,0.83231452,59138.0,59137.0,0.00258368]
[1725321977923,0.45503452,59138.0,59137.0,0.00258368]
[1725321979223,1.56231452,59138.0,59137.0,0.00258368]
[1725321979422,0.36503452,59138.0,59137.0,0.00258368]
[1725321979819,0.45503452,59138.0,59137.0,0.00258368]
[1725321982323,1.17663452,59138.0,59137.0,0.00258368]
[1725321987624,1.08663452,59138.0,59137.0,0.00258368]
[1725321987818,1.17663452,59138.0,59137.0,0.00258368]
[1725321988219,1.01899352,59138.0,59137.0,0.00258368]
[1725321988411,1.10899352,59138.0,59137.0,0.00258368]
[1725321988615,0.97899352,59138.0,59137.0,0.00258368]
[1725321992323,0.97899352,59138.0,59137.0,0.00125368]
[1725322001627,0.3892,59138.0,59137.0,0.00125368]
[1725322001833,0.0284,59138.0,59137.0,0.09895368]
[1725322002035,0.0284,59138.0,59137.0,0.14505368]
[1725322002229,0.0284,59138.0,59137.0,0.19937778]
[1725322003233,0.0284,59138.0,59137.0,0.14867492]
[1725322004341,0.0284,59138.0,59137.0,0.21631692]
[1725322006543,0.0284,59138.0,59137.0,0.21764692]
[1725322007437,0.0284,59138.0,59137.0,0.57844692]
[1725322007633,0.0039,59145.0,59137.0,0.57844692]
[1725322007634,0.0039,59145.0,59144.0,0.067634]
[1725322007840,0.36217369,59148.0,59144.0,0.0904]
[1725322008039,0.36105368,59148.0,59147.0,0.0904]
[1725322008235,0.36105368,59148.0,59147.0,0.09]
[1725322008841,0.36105368,59148.0,59147.0,0.157631]
[1725322009538,0.37305368,59148.0,59147.0,0.158631]
[1725322010629,0.37305368,59148.0,59147.0,0.16219447]
[1725322011033,0.37305368,59148.0,59147.0,0.16319447]
[1725322011034,0.38605368,59148.0,59147.0,0.16319447]
[1725322012536,0.38605368,59148.0,59147.0,0.159631]
[1725322012737,0.38605368,59148.0,59147.0,0.069631]
[1725322014645,0.38605368,59148.0,59147.0,0.159631]
[1725322023152,0.02525368,59148.0,59147.0,0.159631]
[1725322023358,0.3647,59155.0,59154.0,0.067623]
[1725322023548,0.3608,59155.0,59154.0,0.158023]
[1725322024752,0.3628,59155.0,59154.0,0.159023]
[1725322025148,0.002,59155.0,59154.0,0.159023]
[1725322026253,0.003,59155.0,59154.0,0.160023]
[1725322027154,0.003,59155.0,59154.0,1.267183]
[1725322027561,0.002,59155.0,59154.0,1.266183]
[1725322027860,0.428413,59163.0,59158.0,0.067618]
[1725322028048,0.428413,59163.0,59154.0,1.19756]
[1725322028049,0.00373863,59162.0,59161.0,0.0904]
[1725322028244,0.428413,59163.0,59161.0,0.0904]
[1725322028447,0.428413,59163.0,59162.0,0.0004]
[1725322030453,0.3608,59163.0,59162.0,0.0014]
[1725322030658,0.3608,59163.0,59162.0,0.069014]
[1725322030859,0.3608,59163.0,59162.0,0.163114]
[1725322031044,0.001,59163.0,59162.0,0.211114]
[1725322033360,0.07120328,59168.0,59165.0,0.06761]
[1725322033559,0.07120328,59168.0,59167.0,0.09]
[1725322033859,0.07120328,59168.0,59167.0,0.0904]
[1725322034658,0.07220328,59168.0,59167.0,0.0904]
[1725322035762,0.43300328,59168.0,59167.0,0.0904]
[1725322036160,0.07220328,59168.0,59167.0,0.0914]
[1725322036359,0.43300328,59168.0,59167.0,0.0914]
[1725322036661,0.43300328,59168.0,59167.0,0.0924]
[1725322037555,0.3618,59168.0,59167.0,0.160008]
[1725322039561,0.001,59168.0,59167.0,1.627848]
[1725322039951,0.001,59168.0,59167.0,1.120808]
[1725322040266,0.001,59168.0,59167.0,1.627848]
[1725322040566,0.001,59168.0,59167.0,1.267048]
[1725322041366,0.001,59168.0,59167.0,1.627848]
[1725322041864,0.001,59168.0,59167.0,1.267048]
[1725322042363,0.001,59168.0,59167.0,0.160008]
[1725322042859,0.001,59168.0,59167.0,0.161338]
[1725322054773,0.136214,59168.0,59167.0,0.00373]
[1725322055473,0.067608,59167.0,59153.0,0.09]
[1725322055675,0.428422,59155.0,59154.0,0.00025368]
[1725322057671,0.429422,59155.0,59154.0,0.00125368]
[1725322058672,0.429422,59155.0,59154.0,0.00025368]
[1725322059277,0.428422,59155.0,59154.0,0.00025368]
[1725322059479,0.431422,59155.0,59154.0,0.00025368]
[1725322060171,0.43512148,59155.0,59154.0,0.00025368]
[1725322062079,0.3638,59155.0,59154.0,0.06787668]
[1725322062283,0.3638,59155.0,59154.0,0.16407668]
[1725322065484,0.0039,59162.0,59161.0,0.067615]
[1725322065792,0.3608,59165.0,59164.0,0.067612]
[1725322065986,0.3608,59165.0,59164.0,0.158012]
[1725322067489,0.3608,59165.0,59164.0,0.159012]
[1725322068780,0.3608,59165.0,59164.0,0.160012]
[1725322070495,0.3608,59165.0,59164.0,0.159012]
[1725322070693,0.3608,59165.0,59164.0,0.160012]
[1725322071891,0.3608,59165.0,59164.0,0.16360437]
[1725322072790,0.06761,59166.0,59164.0,0.16360437]
[1725322073180,0.06761,59166.0,59165.0,0.0004]
[1725322074897,0.06761,59166.0,59165.0,0.0014]
[1725322075990,0.06761,59166.0,59165.0,0.0024]
[1725322081193,0.13522,59166.0,59165.0,0.0024]
[1725322081900,0.18232,59166.0,59165.0,0.0024]
[1725322082098,0.68936,59166.0,59165.0,0.0024]
[1725322082406,1.39936,59166.0,59165.0,0.0024]
[1725322082597,0.79936,59166.0,59165.0,0.0024]
[1725322082803,1.39936,59166.0,59165.0,0.0024]
[1725322089994,1.28936,59166.0,59165.0,0.0024]
[1725322091100,2.01096,59166.0,59165.0,0.0024]
[1725322092602,2.07857,59166.0,59165.0,0.0024]
[1725322093317,2.19857,59166.0,59165.0,0.0024]
[1725322096907,1.47697,59166.0,59165.0,0.0024]
[1725322097106,2.19857,59166.0,59165.0,0.0024]
[1725322100612,1.59857,59166.0,59165.0,0.0024]
[1725322102208,0.87697,59166.0,59165.0,0.0024]
[1725322102414,1.59857,59166.0,59165.0,0.0024]
[1725322103113,1.09153,59166.0,59165.0,0.0024]
[1725322104023,0.36993,59166.0,59165.0,0.0024]
[1725322104308,1.09153,59166.0,59165.0,0.0024]
[1725322107312,0.067622,59155.0,59154.0,0.00025368]
[1725322107517,0.428822,59155.0,59154.0,0.00025368]
[1725322108414,0.586444,59155.0,59154.0,0.00025368]
[1725322108720,0.764066,59155.0,59154.0,6.8e-07]
[1725322108909,0.764066,59155.0,59143.0,0.0039]
[1725322108910,0.5612,59155.0,59143.0,0.0039]
[1725322109116,0.067638,59141.0,59140.0,0.0468]
[1725322109311,0.225676,59141.0,59140.0,0.0468]
[1725322109619,0.067648,59132.0,59131.0,0.3237]
[1725322109806,0.518848,59132.0,59131.0,0.3237]
[1725322110013,0.06765,59130.0,59129.0,0.0032]
[1725322110213,0.1357,59130.0,59129.0,0.0032]
[1725322111010,0.06805,59130.0,59127.0,1e-06]
[1725322111218,0.067665,59117.0,59116.0,0.0039]
[1725322111417,0.427465,59117.0,59116.0,0.09]
[1725322112023,0.427465,59117.0,59113.0,0.16]
[1725322113011,0.427465,59117.0,59116.0,0.008]
[1725322113409,0.427465,59117.0,59113.0,0.16]
[1725322113620,0.427465,59117.0,59113.0,0.171]
[1725322114216,0.427465,59117.0,59114.0,0.0486]
[1725322115210,0.0008,59115.0,59114.0,0.0486]
[1725322115620,0.0008,59115.0,59114.0,0.00933]
[1725322115824,0.060467,59116.0,59114.0,0.00933]
[1725322116129,0.060467,59116.0,59114.0,0.01013]
[1725322116320,0.060467,59116.0,59114.0,0.02013]
[1725322116719,0.52104,59117.0,59114.0,0.02013]
[1725322116919,0.135336,59115.0,59114.0,0.01813]
[1725322117223,0.135336,59115.0,59109.0,0.00025368]
[1725322117224,0.067673,59110.0,59109.0,0.00025368]
[1725322117526,0.428473,59110.0,59109.0,0.00025368]
[1725322117828,0.43710206,59110.0,59109.0,0.00025368]
[1725322118128,0.43010206,59110.0,59109.0,0.00025368]
[1725322118822,0.43210206,59110.0,59109.0,0.00025368]
[1725322119820,0.43710206,59110.0,59109.0,0.00025368]
[1725322121022,0.44079617,59110.0,59109.0,0.00025368]
[1725322122222,0.43216711,59110.0,59109.0,0.00025368]
[1725322122920,0.43296711,59110.0,59109.0,0.00025368]
[1725322126727,0.429273,59110.0,59109.0,0.00025368]
[1725322129530,0.3696,59110.0,59109.0,0.00025368]
[1725322129731,0.3696,59110.0,59109.0,0.04745368]
[1725322131829,0.3696,59110.0,59109.0,0.00025368]
[1725322131830,0.437273,59110.0,59109.0,0.00025368]
[1725322132030,0.527273,59110.0,59109.0,0.00025368]
[1725322137134,0.437273,59110.0,59109.0,0.00025368]
[1725322140638,0.437273,59110.0,59109.0,0.05081869]
[1725322141929,0.527273,59110.0,59109.0,0.00025368]
[1725322142637,0.437273,59110.0,59109.0,0.00025368]
[1725322143435,0.437273,59110.0,59109.0,0.05081869]
[1725322144633,0.437273,59110.0,59109.0,0.09025368]
[1725322150545,0.3696,59110.0,59109.0,0.15792768]
[1725322151031,0.3696,59110.0,59109.0,0.37133361]
[1725322151236,0.3696,59110.0,59109.0,0.15792768]
[1725322152145,0.3696,59110.0,59109.0,0.15925768]